fUSD/lending_fUSD_20250219
["ID","MTS","AMOUNT","RATE_DAILY","PERIOD"]
[353693839,1739991108140,-1040.5,0.00012024,2]
[353693840,1739991108150,-626.51,0.00012024,2]
[353693841,1739991108159,-500.0,0.00012024,2]
[353693842,1739991108170,-500.0,0.00012024,2]
[353693843,1739991108182,-500.0,0.00012024,2]
[353693844,1739991108193,-1225.45,0.00012024,2]
[353693845,1739991108203,-150.0,0.00012044,2]
[353693846,1739991108214,-173.0,0.00012058,3]
[353693847,1739991108225,-150.0,0.00012067,2]
[353693848,1739991108236,-150.0,0.00012068,2]
[353693849,1739991108246,-150.0,0.00012075,2]
[353693850,1739991108256,-8797.54,0.0001208,5]
[353693851,1739991108265,-671.74,0.0001208,5]
[353693852,1739991108275,-1250.93,0.0001208,5]
[353693853,1739991108286,-27251.5,0.0001208,5]
[353693854,1739991108296,-150.0,0.00012081,2]
[353693855,1739991108306,-255.0,0.00012084,2]
[353693856,1739991108317,-150.0,0.00012087,2]
[353693857,1739991108327,-3222.07,0.00012087,2]
[353693858,1739991108337,-150.99,0.00012087,2]
[353693859,1739991108347,-45096.07,0.00012087,2]
[353693860,1739991108357,-4186.9,0.00012087,2]
[353693861,1739991108367,-150.0,0.0001209,2]
[353693862,1739991108377,-150.0,0.00012093,2]
[353693863,1739991108386,-150.0,0.00012097,2]
[353693864,1739991108396,-1285.43,0.00012105,2]
[353693865,1739991108406,-2055.78,0.00012105,2]
[353693866,1739991108416,-1176.26,0.00012105,2]
[353693867,1739991108426,-1598.02,0.00012105,2]
[353693868,1739991108438,-1177.64,0.00012105,2]
[353693869,1739991108449,-1728.13,0.00012105,2]
[353693870,1739991108462,-1464.57,0.00012105,2]
[353693871,1739991108472,-988.1,0.00012105,2]
[353693872,1739991108481,-1523.71,0.00012105,2]
[353693873,1739991108493,-1697.79,0.00012105,2]
[353693874,1739991108503,-914.84,0.00012105,2]
[353693875,1739991108513,-1345.01,0.00012105,2]
[353693876,1739991108522,-1899.5,0.00012105,2]
[353693877,1739991108533,-835.97,0.00012105,2]
[353693878,1739991108543,-1253.59,0.00012105,2]
[353693879,1739991108553,-676.35,0.00012105,2]
[353693880,1739991108562,-1199.2,0.00012105,2]
[353693881,1739991108572,-1444.06,0.00012105,2]
[353693882,1739991108581,-1165.51,0.00012105,2]
[353693883,1739991108591,-1110.09,0.00012105,2]
[353693884,1739991108600,-955.77,0.00012105,2]
[353693885,1739991108610,-1702.36,0.00012105,2]
[353693886,1739991108621,-500.0,0.00012105,2]
[353693887,1739991108631,-1068.07,0.00012105,2]
[353693888,1739991108641,-541.29,0.00012105,2]
[353693889,1739991108650,-1380.32,0.00012105,2]
[353693890,1739991108660,-564.03,0.00012106,2]
[353693891,1739991108669,-500.0,0.00012106,2]
[353693892,1739991108678,-958.09,0.00012106,2]
[353693893,1739991108688,-500.0,0.00012106,2]
[353693894,1739991108698,-638.44,0.00012106,2]
[353693895,1739991108708,-469.58525784,0.00012106,2]
[353693896,1739991108717,-1305.17,0.00012106,2]
[353693897,1739991108726,-500.0,0.00012106,2]
[353693898,1739991108736,-500.0,0.00012106,2]
[353693899,1739991108746,-335.282174,0.00012106,2]
[353693900,1739991108755,-1013.4,0.00012106,2]
[353693901,1739991108765,-445.363227,0.00012106,2]
[353693902,1739991108775,-800.82,0.00012106,2]
[353693903,1739991108784,-566.24,0.00012106,2]
[353693904,1739991108793,-500.0,0.00012106,2]
[353693905,1739991108803,-1291.22,0.00012106,2]
[353693906,1739991108812,-705.7,0.00012106,2]
[353693907,1739991108822,-1007.94,0.00012106,2]
[353693908,1739991108832,-541.08156843,0.00012106,2]
[353693909,1739991108842,-500.0,0.00012106,2]
[353693910,1739991108852,-1100.17,0.00012106,2]
[353693911,1739991108861,-1164.92,0.00012106,2]
[353693912,1739991108871,-1009.77,0.00012106,2]
[353693913,1739991108880,-1086.24,0.00012106,2]
[353693914,1739991108889,-1103.11,0.00012106,2]
[353693915,1739991108899,-500.0,0.00012106,2]
[353693916,1739991108909,-689.09,0.00012106,2]
[353693917,1739991108918,-505.58232135,0.00012106,2]
[353693918,1739991108928,-1109.15,0.00012106,2]
[353693919,1739991108939,-752.25,0.00012106,2]
[353693920,1739991108948,-712.53,0.00012106,2]
[353693921,1739991108958,-500.0,0.00012106,2]
[353693922,1739991108967,-844.15,0.00012106,2]
[353693923,1739991108977,-1035.94,0.00012106,2]
[353693924,1739991108987,-1177.99,0.00012106,2]
[353693925,1739991108997,-970.06,0.00012106,2]
[353693926,1739991109006,-842.16,0.00012106,2]
[353693927,1739991109016,-1231.95,0.00012106,2]
[353693928,1739991109025,-833.68,0.00012106,2]
[353693929,1739991109036,-1384.51,0.00012106,2]
[353693930,1739991109046,-992.43,0.00012106,2]
[353693931,1739991109055,-700.4,0.00012106,2]
[353693932,1739991109064,-896.41,0.00012106,2]
[353693933,1739991109074,-500.0,0.00012106,2]
[353693934,1739991109084,-835.28,0.00012106,2]
[353693935,1739991109093,-730.1,0.00012106,2]
[353693936,1739991109103,-638.47,0.00012106,2]
[353693937,1739991109112,-722.91,0.00012106,2]
[353693938,1739991109122,-700.98,0.00012106,2]
[353693939,1739991109131,-500.0,0.00012106,2]
[353693940,1739991109141,-887.61,0.00012106,2]
[353693941,1739991109151,-1299.23,0.00012106,2]
[353693942,1739991109319,-537.11,0.00012106,2]
[353693943,1739991109329,-1023.26,0.00012106,2]
[353693944,1739991109337,-500.0,0.00012106,2]
[353693945,1739991109347,-1193.06,0.00012106,2]
[353693946,1739991109356,-809.28,0.00012106,2]
[353693947,1739991109366,-947.29,0.00012106,2]
[353693948,1739991109376,-569.98,0.00012106,2]
[353693949,1739991109385,-738.85,0.00012106,2]
[353693950,1739991109395,-500.0,0.00012106,2]
[353693951,1739991109404,-819.36,0.00012106,2]
[353693952,1739991109414,-504.01,0.00012106,2]
[353693953,1739991109422,-841.31,0.00012106,2]
[353693954,1739991109432,-716.57,0.00012106,2]
[353693955,1739991109442,-1059.78,0.00012106,2]
[353693956,1739991109452,-685.17,0.00012106,2]
[353693957,1739991109463,-948.49,0.00012106,2]
[353693958,1739991109473,-1210.93,0.00012106,2]
[353693959,1739991109483,-1232.61,0.00012106,2]
[353693960,1739991109494,-660.75,0.00012106,2]
[353693961,1739991109503,-722.62,0.00012106,2]
[353693962,1739991109513,-856.89,0.00012106,2]
[353693963,1739991109523,-1893.0,0.00012106,2]
[353693964,1739991109534,-529.4,0.00012106,2]
[353693965,1739991109543,-500.0,0.00012106,2]
[353693966,1739991109553,-500.0,0.00012106,2]
[353693967,1739991109563,-1123.65,0.00012106,2]
[353693968,1739991109573,-767.14,0.00012106,2]
[353693969,1739991109583,-838.25,0.00012106,2]
[353693970,1739991109593,-857.74,0.00012106,2]
[353693971,1739991109603,-702.31,0.00012106,2]
[353693972,1739991109612,-500.0,0.00012106,2]
[353693973,1739991109622,-766.99,0.00012106,2]
[353693974,1739991109631,-1022.47,0.00012106,2]
[353693975,1739991109641,-1271.18,0.00012106,2]
[353693976,1739991109651,-562.14,0.00012106,2]
[353693977,1739991109662,-1255.93,0.00012106,2]
[353693978,1739991109672,-735.72,0.00012106,2]
[353693979,1739991109682,-1023.77,0.00012106,2]
[353693980,1739991109692,-500.0,0.00012106,2]
[353693981,1739991109702,-741.16,0.00012106,2]
[353693982,1739991109711,-500.0,0.00012106,2]
[353693983,1739991109721,-1492.46,0.00012106,2]
[353693984,1739991109731,-1211.99,0.00012106,2]
[353693985,1739991109741,-908.55,0.00012106,2]
[353693986,1739991109751,-1115.3,0.00012106,2]
[353693987,1739991109760,-622.28,0.00012106,2]
[353693988,1739991109770,-725.41,0.00012106,2]
[353693989,1739991109780,-1312.13,0.00012106,2]
[353693990,1739991109790,-500.0,0.00012106,2]
[353693991,1739991109800,-500.0,0.00012106,2]
[353693992,1739991109809,-1135.89,0.00012106,2]
[353693993,1739991109819,-500.0,0.00012106,2]
[353693994,1739991109829,-626.24,0.00012106,2]
[353693995,1739991109839,-873.22,0.00012106,2]
[353693996,1739991109849,-828.64,0.00012106,2]
[353693997,1739991109859,-842.88,0.00012106,2]
[353693998,1739991109868,-1067.13,0.00012106,2]
[353693999,1739991109878,-760.82,0.00012106,2]
[353694000,1739991109887,-959.81,0.00012106,2]
[353694001,1739991109897,-1130.2,0.00012106,2]
[353694002,1739991109906,-621.03,0.00012106,2]
[353694003,1739991109917,-837.8,0.00012106,2]
[353694004,1739991109927,-500.0,0.00012106,2]
[353694005,1739991109937,-524.85,0.00012106,2]
[353694006,1739991109947,-763.25,0.00012106,2]
[353694007,1739991109956,-687.97,0.00012106,2]
[353694008,1739991109965,-1453.26,0.00012106,2]
[353694009,1739991109975,-2178.41,0.00012106,2]
[353694010,1739991109985,-2978.68,0.00012106,2]
[353694011,1739991109994,-867.64,0.00012106,2]
[353694012,1739991110003,-500.0,0.00012106,2]
[353694013,1739991110013,-909.17,0.00012106,2]
[353694014,1739991110022,-500.0,0.00012106,2]
[353694015,1739991110032,-944.41,0.00012106,2]
[353694016,1739991110042,-1335.65,0.00012106,2]
[353694017,1739991110051,-1536.77,0.00012106,2]
[353694018,1739991110060,-1667.3,0.00012106,2]
[353694019,1739991110070,-2300.26,0.00012106,2]
[353694020,1739991110079,-1054.96,0.00012106,2]
[353694021,1739991110089,-3967.01,0.00012106,2]
[353694022,1739991110099,-2151.49,0.00012106,2]
[353694023,1739991110108,-500.0,0.00012106,2]
[353694024,1739991110117,-1026.98,0.00012106,2]
[353694025,1739991110127,-1717.95,0.00012106,2]
[353694026,1739991110136,-723.0,0.00012106,2]
[353694027,1739991110146,-858.82,0.00012106,2]
[353694028,1739991110156,-360.4,0.00012106,2]
[353694029,1739991110165,-736.71,0.00012106,2]
[353694030,1739991110175,-731.07,0.00012106,2]
[353694031,1739991110185,-808.06,0.00012106,2]
[353694032,1739991110195,-500.0,0.00012106,2]
[353694033,1739991110205,-1003.52,0.00012106,2]
[353694034,1739991110214,-500.0,0.00012106,2]
[353694035,1739991110225,-1216.45,0.00012106,2]
[353694036,1739991110234,-897.65,0.00012106,2]
[353694037,1739991110244,-969.77,0.00012106,2]
[353694038,1739991110254,-1228.25,0.00012106,2]
[353694039,1739991110263,-597.7,0.00012106,2]
[353694040,1739991110275,-2264.91,0.00012106,2]
[353694041,1739991110284,-500.0,0.00012106,2]
[353694042,1739991110294,-1031.26,0.00012106,2]
[353694043,1739991110304,-813.49,0.00012106,2]
[353694044,1739991110313,-943.59,0.00012106,2]
[353694045,1739991110323,-807.9,0.00012106,2]
[353694046,1739991110333,-952.43,0.00012106,2]
[353694047,1739991110343,-1249.19,0.00012106,2]
[353694048,1739991110352,-1931.39,0.00012106,2]
[353694049,1739991110362,-699.69,0.00012106,2]
[353694050,1739991110371,-736.37,0.00012106,2]
[353694051,1739991110381,-1349.59,0.00012106,2]
[353694052,1739991110390,-2136.43,0.00012106,2]
[353694053,1739991110399,-1308.13,0.00012106,2]
[353694054,1739991110408,-763.21,0.00012106,2]
[353694055,1739991110418,-676.6,0.00012106,2]
[353694056,1739991110427,-1669.19,0.00012106,2]
[353694057,1739991110437,-2496.14,0.00012106,2]
[353694058,1739991110447,-838.79,0.00012106,2]
[353694059,1739991110459,-500.0,0.00012106,2]
[353694060,1739991110468,-844.7,0.00012106,2]
[353694061,1739991110478,-1038.95,0.00012106,2]
[353694062,1739991110487,-500.0,0.00012106,2]
[353694063,1739991110496,-643.34,0.00012106,2]
[353694064,1739991110506,-862.23,0.00012106,2]
[353694065,1739991110516,-1682.85,0.00012106,2]
[353694066,1739991110537,-972.98,0.00012106,2]
[353694067,1739991110553,-1170.77,0.00012106,2]
[353694068,1739991110573,-1036.38,0.00012106,2]
[353694069,1739991110591,-665.65,0.00012106,2]
[353694070,1739991110607,-500.0,0.00012106,2]
[353694071,1739991110627,-816.32,0.00012106,2]
[353694072,1739991110646,-1472.21,0.00012106,2]
[353694073,1739991110665,-1143.91,0.00012106,2]
[353694074,1739991110684,-500.0,0.00012106,2]
[353694075,1739991110701,-7684.69,0.00012106,2]
[353694076,1739991110720,-1239.55,0.00012106,2]
[353694077,1739991110735,-1609.82,0.00012106,2]
[353694078,1739991110755,-694.56,0.00012106,2]
[353694079,1739991110768,-1000.0,0.00012106,2]
[353694080,1739991110787,-677.2,0.00012106,2]
[353694081,1739991110800,-1545.54,0.00012106,2]
[353694082,1739991110816,-1288.85,0.00012106,2]
[353694083,1739991110833,-1349.76,0.00012106,2]
[353694084,1739991110848,-591.57,0.00012106,2]
[353694085,1739991110863,-1045.64,0.00012106,2]
[353694086,1739991110877,-544.71,0.00012106,2]
[353694087,1739991110892,-515.07,0.00012106,2]
[353694088,1739991110908,-500.0,0.00012106,2]
[353694089,1739991110924,-864.21,0.00012106,2]
[353694090,1739991110940,-1217.73,0.00012106,2]
[353694091,1739991110955,-1242.44,0.00012106,2]
[353694092,1739991110972,-608.9,0.00012106,2]
[353694093,1739991110988,-500.0,0.00012106,2]
[353694094,1739991111003,-500.0,0.00012106,2]
[353694095,1739991111018,-1333.33,0.00012106,2]
[353694096,1739991111033,-2099.28,0.00012106,2]
[353694097,1739991111048,-646.88,0.00012106,2]
[353694098,1739991111062,-1098.74,0.00012106,2]
[353694099,1739991111077,-631.78,0.00012106,2]
[353694100,1739991111093,-1305.78,0.00012106,2]
[353694101,1739991111108,-814.94,0.00012106,2]
[353694102,1739991111123,-591.42,0.00012106,2]
[353694103,1739991111138,-500.0,0.00012106,2]
[353694104,1739991111152,-1698.82,0.00012106,2]
[353694105,1739991111167,-1656.29,0.00012106,2]
[353694106,1739991111182,-958.07,0.00012106,2]
[353694107,1739991111198,-1140.78,0.00012106,2]
[353694108,1739991111213,-1343.79,0.00012106,2]
[353694109,1739991111229,-500.0,0.00012106,2]
[353694110,1739991111243,-199.37,0.00012106,2]
[353694111,1739991111258,-1109.34,0.00012106,2]
[353694112,1739991111274,-940.17,0.00012106,2]
[353694113,1739991111290,-3616.83,0.00012106,2]
[353694114,1739991111305,-1068.94,0.00012106,2]
[353694115,1739991111320,-1192.02,0.00012106,2]
[353694116,1739991111335,-1134.66,0.00012106,2]
[353694117,1739991111351,-1387.53,0.00012106,2]
[353694118,1739991111366,-500.0,0.00012106,2]
[353694119,1739991111380,-525.63,0.00012106,2]
[353694120,1739991111395,-1867.51,0.00012106,2]
[353694121,1739991111408,-1262.86,0.00012106,2]
[353694122,1739991111423,-1225.46,0.00012106,2]
[353694123,1739991111439,-416.92,0.00012106,2]
[353694124,1739991111459,-1283.85,0.00012106,2]
[353694125,1739991111473,-1033.15,0.00012106,2]
[353694126,1739991111488,-1890.5,0.00012106,2]
[353694127,1739991111504,-1247.13,0.00012106,2]
[353694128,1739991111518,-500.0,0.00012106,2]
[353694129,1739991111533,-953.52,0.00012106,2]
[353694130,1739991111548,-701.13,0.00012106,2]
[353694131,1739991111561,-606.51,0.00012106,2]
[353694132,1739991111576,-500.0,0.00012106,2]
[353694133,1739991111591,-837.99,0.00012106,2]
[353694134,1739991111606,-852.55,0.00012106,2]
[353694135,1739991111620,-1040.5,0.00012106,2]
[353694136,1739991111634,-626.51,0.00012106,2]
[353694137,1739991111648,-500.0,0.00012106,2]
[353694138,1739991111662,-500.0,0.00012106,2]
[353694139,1739991111676,-1225.45,0.00012106,2]
[353694140,1739991111691,-500.0,0.00012107,2]
[353694141,1739991111704,-711.12,0.00012107,2]
[353694142,1739991111719,-596.61092735,0.00012107,2]
[353694143,1739991111733,-500.0,0.00012107,2]
[353694144,1739991111748,-567.75,0.00012107,2]
[353694145,1739991111762,-774.79,0.00012107,2]
[353694146,1739991111776,-648.92,0.00012107,2]
[353694147,1739991111791,-500.0,0.00012107,2]
[353694148,1739991111805,-500.0,0.00012107,2]
[353694149,1739991111819,-939.76,0.00012107,2]
[353694150,1739991111833,-500.0,0.00012107,2]
[353694151,1739991111848,-726.31,0.00012107,2]
[353694152,1739991111864,-527.6,0.00012107,2]
[353694153,1739991111878,-637.14,0.00012107,2]
[353694154,1739991111892,-501.4,0.00012107,2]
[353694155,1739991111906,-550.13,0.00012107,2]
[353694156,1739991111920,-605.64,0.00012107,2]
[353694157,1739991111935,-500.0,0.00012107,2]
[353694158,1739991111954,-500.0,0.00012107,2]
[353694159,1739991111969,-150.0,0.00012107,2]
[353694160,1739991111984,-670.06,0.00012107,2]
[353694161,1739991111998,-500.0,0.00012107,2]
[353694162,1739991112012,-500.0,0.00012107,2]
[353694163,1739991112027,-500.0,0.00012107,2]
[353694164,1739991112042,-741.15,0.00012107,2]
[353694165,1739991112057,-500.0,0.00012107,2]
[353694166,1739991112072,-917.52,0.00012107,2]
[353694167,1739991112087,-653.65,0.00012107,2]
[353694168,1739991112102,-500.0,0.00012107,2]
[353694169,1739991112117,-575.12,0.00012107,2]
[353694170,1739991112132,-500.0,0.00012107,2]
[353694171,1739991112146,-1008.4,0.00012107,2]
[353694172,1739991112162,-648.67,0.00012107,2]
[353694173,1739991112177,-709.82,0.00012107,2]
[353694174,1739991112194,-500.0,0.00012107,2]
[353694175,1739991112209,-759.69,0.00012107,2]
[353694176,1739991112224,-939.45,0.00012107,2]
[353694177,1739991112241,-934.24,0.00012107,2]
[353694178,1739991112256,-1565.74,0.00012107,2]
[353694179,1739991112270,-779.39,0.00012107,2]
[353694180,1739991112286,-1114.74,0.00012107,2]
[353694181,1739991112301,-500.0,0.00012107,2]
[353694182,1739991112316,-1307.87,0.00012107,2]
[353694183,1739991112330,-500.0,0.00012107,2]
[353694184,1739991112346,-1563.31,0.00012107,2]
[353694185,1739991112363,-342.30212898,0.00012107,2]
[353694186,1739991112626,-626.84,0.00012107,2]
[353694187,1739991112651,-500.0,0.00012107,2]
[353694188,1739991112661,-1098.62,0.00012107,2]
[353694189,1739991112672,-602.42,0.00012107,2]
[353694190,1739991112681,-1563.53,0.00012107,2]
[353694191,1739991112691,-500.0,0.00012107,2]
[353694192,1739991112701,-1617.89,0.00012107,2]
[353694193,1739991112711,-568.32,0.00012107,2]
[353694194,1739991112722,-1902.45,0.00012107,2]
[353694195,1739991112732,-500.0,0.00012107,2]
[353694196,1739991112742,-997.72,0.00012107,2]
[353694197,1739991112752,-1224.85,0.00012107,2]
[353694198,1739991112761,-1076.75,0.00012107,2]
[353694199,1739991112771,-1287.1,0.00012107,2]
[353694200,1739991112780,-507.43,0.00012107,2]
[353694201,1739991112790,-1834.21,0.00012107,2]
[353694202,1739991112800,-1131.11,0.00012107,2]
[353694203,1739991112809,-1818.6,0.00012107,2]
[353694204,1739991112819,-500.0,0.00012107,2]
[353694205,1739991112828,-967.39,0.00012107,2]
[353694206,1739991112838,-613.64,0.00012107,2]
[353694207,1739991112848,-500.0,0.00012107,2]
[353694208,1739991112858,-1954.75,0.00012107,2]
[353694209,1739991112867,-1010.26,0.00012107,2]
[353694210,1739991112877,-500.0,0.00012107,2]
[353694211,1739991112887,-651.03,0.00012107,2]
[353694212,1739991112897,-825.62,0.00012107,2]
[353694213,1739991112907,-500.0,0.00012107,2]
[353694214,1739991112917,-500.0,0.00012107,2]
[353694215,1739991112931,-500.0,0.00012107,2]
[353694216,1739991112941,-366.31525344,0.00012107,2]
[353694217,1739991112952,-1110.11,0.00012107,2]
[353694218,1739991112961,-774.36,0.00012107,2]
[353694219,1739991112971,-811.92,0.00012107,2]
[353694220,1739991112981,-1151.56,0.00012107,2]
[353694221,1739991112991,-500.0,0.00012107,2]
[353694222,1739991113001,-1042.18,0.00012107,2]
[353694223,1739991113010,-500.0,0.00012107,2]
[353694224,1739991113019,-534.83,0.00012107,2]
[353694225,1739991113029,-619.91,0.00012107,2]
[353694226,1739991113039,-533.51,0.00012107,2]
[353694227,1739991113048,-581.26,0.00012107,2]
[353694228,1739991113058,-500.0,0.00012107,2]
[353694229,1739991113068,-500.0,0.00012107,2]
[353694230,1739991113078,-500.0,0.00012107,2]
[353694231,1739991113088,-490.31690474,0.00012107,2]
[353694232,1739991113097,-849.02,0.00012107,2]
[353694233,1739991113107,-563.08,0.00012107,2]
[353694234,1739991113117,-758.16,0.00012107,2]
[353694235,1739991113128,-500.0,0.00012107,2]
[353694236,1739991113137,-500.0,0.00012107,2]
[353694237,1739991113147,-150.0,0.0001211,2]
[353694238,1739991113158,-150.0,0.00012113,2]
[353694239,1739991113168,-150.0,0.00012115,2]
[353694240,1739991113178,-150.0,0.00012141,2]
[353694241,1739991113187,-150.0,0.00012143,2]
[353694242,1739991113197,-163.05610438,0.00012143,2]
[353694243,1739991113207,-150.0,0.00012161,2]
[353694244,1739991113217,-247.40460497,0.00012175,2]
[353694245,1739991113225,-150.0,0.00012178,2]
[353694246,1739991113234,-150.0,0.00012187,2]
[353694247,1739991113244,-1285.43,0.00012187,2]
[353694248,1739991113254,-2055.78,0.00012187,2]
[353694249,1739991113264,-1176.26,0.00012187,2]
[353694250,1739991113274,-1598.02,0.00012187,2]
[353694251,1739991113284,-1177.64,0.00012187,2]
[353694252,1739991113294,-1728.13,0.00012187,2]
[353694253,1739991113305,-1464.57,0.00012187,2]
[353694254,1739991113315,-988.1,0.00012187,2]
[353694255,1739991113325,-1523.71,0.00012187,2]
[353694256,1739991113335,-1697.79,0.00012187,2]
[353694257,1739991113344,-914.84,0.00012187,2]
[353694258,1739991113354,-1345.01,0.00012187,2]
[353694259,1739991113364,-1899.5,0.00012187,2]
[353694260,1739991113374,-835.97,0.00012187,2]
[353694261,1739991113384,-1253.59,0.00012187,2]
[353694262,1739991113397,-676.35,0.00012187,2]
[353694263,1739991113407,-1199.2,0.00012187,2]
[353694264,1739991113415,-1444.06,0.00012187,2]
[353694265,1739991113425,-1165.51,0.00012187,2]
[353694266,1739991113435,-1110.09,0.00012187,2]
[353694267,1739991113444,-955.77,0.00012187,2]
[353694268,1739991113457,-1702.36,0.00012187,2]
[353694269,1739991113467,-500.0,0.00012187,2]
[353694270,1739991113477,-1068.07,0.00012187,2]
[353694271,1739991113486,-541.29,0.00012187,2]
[353694272,1739991113498,-1380.32,0.00012187,2]
[353694273,1739991113508,-564.03,0.00012188,2]
[353694274,1739991113517,-500.0,0.00012188,2]
[353694275,1739991113527,-958.09,0.00012188,2]
[353694276,1739991113537,-500.0,0.00012188,2]
[353694277,1739991113547,-638.44,0.00012188,2]
[353694278,1739991113556,-1305.17,0.00012188,2]
[353694279,1739991113566,-500.0,0.00012188,2]
[353694280,1739991113575,-500.0,0.00012188,2]
[353694281,1739991113586,-335.282174,0.00012188,2]
[353694282,1739991113596,-1013.4,0.00012188,2]
[353694283,1739991113607,-445.363227,0.00012188,2]
[353694284,1739991113618,-800.82,0.00012188,2]
[353694285,1739991113627,-566.24,0.00012188,2]
[353694286,1739991113637,-500.0,0.00012188,2]
[353694287,1739991113647,-705.7,0.00012188,2]
[353694288,1739991113658,-1291.22,0.00012188,2]
[353694289,1739991113668,-1007.94,0.00012188,2]
[353694290,1739991113677,-500.0,0.00012188,2]
[353694291,1739991113688,-1100.17,0.00012188,2]
[353694292,1739991113698,-1164.92,0.00012188,2]
[353694293,1739991113707,-1009.77,0.00012188,2]
[353694294,1739991113718,-1086.24,0.00012188,2]
[353694295,1739991113727,-1103.11,0.00012188,2]
[353694296,1739991113738,-500.0,0.00012188,2]
[353694297,1739991113748,-689.09,0.00012188,2]
[353694298,1739991113757,-1109.15,0.00012188,2]
[353694299,1739991113767,-752.25,0.00012188,2]
[353694300,1739991113778,-712.53,0.00012188,2]
[353694301,1739991113788,-372.46,0.00012188,2]
[353694302,1739991113797,-844.15,0.00012188,2]
[353694303,1739991113807,-1035.94,0.00012188,2]
[353694304,1739991113817,-1177.99,0.00012188,2]
[353694305,1739991113828,-970.06,0.00012188,2]
[353694306,1739991113839,-842.16,0.00012188,2]
[353694307,1739991113849,-1231.95,0.00012188,2]
[353694308,1739991113862,-833.68,0.00012188,2]
[353694309,1739991113873,-1384.51,0.00012188,2]
[353694310,1739991113882,-992.43,0.00012188,2]
[353694311,1739991113892,-700.4,0.00012188,2]
[353694312,1739991113903,-896.41,0.00012188,2]
[353694313,1739991113913,-500.0,0.00012188,2]
[353694314,1739991113922,-835.28,0.00012188,2]
[353694315,1739991113932,-730.1,0.00012188,2]
[353694316,1739991113942,-638.47,0.00012188,2]
[353694317,1739991113952,-722.91,0.00012188,2]
[353694318,1739991113962,-700.98,0.00012188,2]
[353694319,1739991113972,-500.0,0.00012188,2]
[353694320,1739991113983,-887.61,0.00012188,2]
[353694321,1739991113993,-1299.23,0.00012188,2]
[353694322,1739991114002,-537.11,0.00012188,2]
[353694323,1739991114012,-1023.26,0.00012188,2]
[353694324,1739991114022,-500.0,0.00012188,2]
[353694325,1739991114033,-1193.06,0.00012188,2]
[353694326,1739991114043,-809.28,0.00012188,2]
[353694327,1739991114053,-569.98,0.00012188,2]
[353694328,1739991114063,-947.29,0.00012188,2]
[353694329,1739991114073,-738.85,0.00012188,2]
[353694330,1739991114084,-500.0,0.00012188,2]
[353694331,1739991114093,-819.36,0.00012188,2]
[353694332,1739991114104,-504.01,0.00012188,2]
[353694333,1739991114113,-841.31,0.00012188,2]
[353694334,1739991114123,-716.57,0.00012188,2]
[353694335,1739991114134,-1059.78,0.00012188,2]
[353694336,1739991114144,-685.17,0.00012188,2]
[353694337,1739991114155,-948.49,0.00012188,2]
[353694338,1739991114165,-1210.93,0.00012188,2]